bitfinex-derivatives/quotes_ETHF0:USTF0_20250520
["timestamp","ask_amount","ask_price","bid_price","bid_amount"]
[1747737736253,0.00596932,2510.1,2510.0,9.63448229]
[1747737736557,0.00596932,2510.1,2510.0,12.84228229]
[1747737737254,4.5163,2510.7,2510.6,0.79639]
[1747737737460,3.2078,2510.7,2510.6,9.07139]
[1747737738059,3.2078,2510.7,2510.6,11.062905]
[1747737738251,3.2078,2510.7,2510.6,11.928105]
[1747737738450,3.2078,2510.7,2510.6,9.93659]
[1747737738752,3.2078,2510.7,2510.6,11.928105]
[1747737739355,0.00596932,2510.9,2510.8,0.79632]
[1747737739861,0.00596932,2510.9,2510.8,2.78767999]
[1747737740763,0.00596932,2510.9,2510.8,3.11151194]
[1747737742470,0.00596932,2510.9,2510.8,2.78767999]
[1747737742964,0.00596932,2510.9,2510.8,4.17557999]
[1747737744067,0.00596932,2510.9,2510.8,4.49941194]
[1747737744263,0.65379086,2511.5,2510.8,48.85209194]
[1747737744565,0.65379086,2511.8,2511.7,0.79604]
[1747737744765,0.65379086,2511.8,2511.7,9.07004]
[1747737745164,0.65379086,2511.8,2511.7,11.060685]
[1747737746559,0.98188585,2512.0,2511.7,11.060685]
[1747737746759,1.30696858,2512.5,2512.2,0.79588]
[1747737747073,1.30696858,2512.5,2512.4,0.79582]
[1747737747461,1.30696858,2512.5,2512.4,4.15321]
[1747737748063,1.3171,2512.6,2512.5,0.79578]
[1747737748469,1.3171,2512.6,2512.5,2.16308]
[1747737749065,1.3171,2512.6,2512.5,10.43408]
[1747737750169,1.3171,2512.6,2512.5,12.42408999]
[1747737750369,1.3171,2512.6,2512.5,10.43408]
[1747737750971,1.3171,2512.6,2512.5,8.271]
[1747737751174,9.0571,2512.6,2512.2,0.00596932]
[1747737751372,3.2078,2512.4,2512.2,0.00596932]
[1747737751568,4.00362,2512.4,2512.3,0.79585]
[1747737751972,9.00362,2512.4,2512.3,0.79585]
[1747737752273,11.74362,2512.4,2512.3,0.79585]
[1747737752870,5.9478,2512.4,2512.3,0.79585]
[1747737753071,2.74,2512.4,2512.3,9.06585]
[1747737753275,0.8798,2512.5,2512.4,0.79582]
[1747737753775,0.00596932,2512.7,2512.6,0.79575]
[1747737754175,2.74596932,2512.7,2512.6,0.79575]
[1747737761077,2.74596932,2512.7,2512.6,0.79475]
[1747737762782,2.74596932,2512.7,2512.6,0.79375]
[1747737763781,2.74596932,2512.7,2512.6,0.80384999]
[1747737763982,4.13206932,2512.7,2512.6,0.80384999]
[1747737764184,4.13206932,2512.7,2512.6,0.80284999]
[1747737764683,4.13206932,2512.7,2512.6,0.80184999]
[1747737764885,4.13206932,2512.7,2512.6,0.80084999]
[1747737765180,4.13206932,2512.7,2512.6,0.79984999]
[1747737765382,4.13206932,2512.7,2512.6,0.79884999]
[1747737765774,4.13206932,2512.7,2512.6,0.79784999]
[1747737766480,4.13206932,2512.7,2512.6,0.79684999]
[1747737766981,4.13206932,2512.7,2512.6,0.79584999]
[1747737767283,4.13206932,2512.7,2512.6,0.79484999]
[1747737767683,2.74596932,2512.7,2512.6,0.79484999]
[1747737767884,2.74596932,2512.7,2512.6,3.64327999]
[1747737768285,0.00596932,2512.7,2512.6,3.64327999]
[1747737770183,0.00596932,2512.7,2512.6,0.79484999]
[1747737770486,0.00596932,2512.7,2512.6,9.05184999]
[1747737770789,2.20506932,2512.7,2512.6,9.05184999]
[1747737771184,1.00960932,2512.7,2512.6,16.04177999]
[1747737771481,1.3811,2513.5,2513.4,0.7955]
[1747737771684,2.17657,2513.5,2513.4,0.80659999]
[1747737771881,1.3811,2513.5,2513.4,0.80659999]
[1747737772082,2.17657,2513.5,2513.4,0.80559999]
[1747737772286,8.1498,2513.5,2513.4,0.01109999]
[1747737772586,8.94527,2513.5,2513.4,0.80659999]
[1747737772786,8.1498,2513.5,2513.4,0.80659999]
[1747737772982,8.1498,2513.5,2513.4,0.80559999]
[1747737773186,8.94527,2513.5,2513.4,0.80559999]
[1747737773386,8.94527,2513.5,2513.4,0.7955]
[1747737773584,5.9478,2513.5,2513.4,0.7955]
[1747737773787,5.9478,2513.5,2513.4,0.7945]
[1747737774288,7.2532,2513.5,2513.4,0.7935]
[1747737774487,7.2532,2513.5,2513.4,0.7925]
[1747737774789,7.2532,2513.5,2513.4,0.7915]
[1747737775190,7.2532,2513.5,2513.4,0.7905]
[1747737775683,8.04867,2513.5,2513.4,0.7895]
[1747737775989,8.04867,2513.5,2513.4,0.7885]
[1747737776383,8.1314,2513.5,2513.4,0.7885]
[1747737776581,8.1314,2513.5,2513.4,0.7875]
[1747737776790,8.1314,2513.5,2513.4,0.7865]
[1747737776992,8.92687,2513.5,2513.4,0.7865]
[1747737777290,8.92687,2513.5,2513.4,0.7855]
[1747737777687,8.92687,2513.5,2513.4,0.7845]
[1747737778391,8.92687,2513.5,2513.4,0.7835]
[1747737778688,8.1314,2513.5,2513.4,0.7835]
[1747737778885,7.2532,2513.5,2513.4,0.7825]
[1747737779287,7.2532,2513.5,2513.4,0.7815]
[1747737779485,5.9478,2513.5,2513.4,2.7708]
[1747737779685,5.9478,2513.5,2513.4,2.7698]
[1747737779885,2.74,2513.5,2513.4,2.7698]
[1747737780089,0.00395131,2513.7,2513.4,2.7688]
[1747737780389,0.00395131,2513.7,2513.6,0.79544]
[1747737780594,0.00395131,2513.7,2513.6,2.78358]
[1747737780790,0.79935131,2513.7,2513.5,1.2821]
[1747737781093,0.79543,2513.6,2513.5,2.31976816]
[1747737781394,0.79543,2513.6,2513.5,10.57476816]
[1747737781595,4.82847131,2513.7,2513.6,0.79543]
[1747737781893,4.82847131,2513.7,2513.6,0.79443]
[1747737782093,4.03305131,2513.7,2513.6,0.79343]
[1747737782389,2.74395131,2513.7,2513.6,0.79343]
[1747737782595,2.74395131,2513.7,2513.6,1.61013]
[1747737782987,2.74395131,2513.7,2513.6,1.60913]
[1747737783187,0.00395131,2513.7,2513.6,1.60913]
[1747737783395,0.00395131,2513.7,2513.6,1.60813]
[1747737783795,0.00395131,2513.7,2513.6,1.60713]
[1747737784192,0.79935131,2513.7,2513.6,0.8177]
[1747737784399,0.79544,2513.6,2513.5,0.24222816]
[1747737784613,6.20844,2513.6,2513.5,0.24122816]
[1747737784990,6.20844,2513.6,2513.5,0.24022816]
[1747737785189,0.79547,2513.5,2513.4,9.0505]
[1747737785496,2.98177,2513.5,2513.4,9.0495]
[1747737785794,2.98177,2513.5,2513.4,9.0485]
[1747737786095,5.72177,2513.5,2513.4,9.0485]
[1747737786296,4.9263,2513.5,2513.4,9.0475]
[1747737786598,4.9263,2513.5,2513.4,9.0465]
[1747737786898,5.72177,2513.5,2513.4,9.0465]
[1747737787098,5.72177,2513.5,2513.4,9.0455]
[1747737787300,5.72177,2513.5,2513.4,8.25]
[1747737787491,5.72177,2513.5,2513.4,8.249]
[1747737787892,5.72177,2513.5,2513.4,8.248]
[1747737788089,0.79559,2513.2,2513.1,9.04156]
[1747737788294,0.79559,2513.2,2513.1,9.04259]
[1747737788494,2.06269,2513.2,2513.1,9.04159]
[1747737788899,2.06269,2513.2,2513.1,9.04059]
[1747737789099,4.80269,2513.2,2513.1,9.04059]
[1747737789299,4.80269,2513.2,2513.1,9.03959]
[1747737789606,4.80269,2513.2,2513.1,8.244]
[1747737789893,4.80269,2513.2,2513.1,9.03859]
[1747737790098,4.80269,2513.2,2513.1,8.243]
[1747737790291,4.80269,2513.2,2513.1,8.242]
[1747737790595,4.80269,2513.2,2513.1,9.03659]
[1747737790797,4.80269,2513.2,2513.1,8.241]
[1747737790995,0.79563,2513.0,2512.9,1.2828]
[1747737791301,4.00343,2513.0,2512.9,8.247]
[1747737791497,4.00343,2513.0,2512.9,8.246]
[1747737792193,4.00343,2513.0,2512.9,8.245]
[1747737792194,6.74343,2513.0,2512.9,8.245]
[1747737792601,6.74343,2513.0,2512.9,8.244]
[1747737793101,6.74343,2513.0,2512.9,8.243]
[1747737793303,6.74343,2513.0,2512.9,9.03866]
[1747737793705,6.74343,2513.0,2512.9,9.03766]
[1747737794199,4.00343,2513.0,2512.9,10.29576]
[1747737794395,4.00343,2513.0,2512.9,10.29476]
[1747737795002,4.00343,2513.0,2512.9,10.29376]
[1747737795406,4.00343,2513.0,2512.9,10.29276]
[1747737795805,4.00343,2513.0,2512.9,10.29176]
[1747737796405,4.00343,2513.0,2512.9,10.29076]
[1747737796600,4.00343,2513.0,2512.9,9.4941]
[1747737796908,0.79569,2512.8,2512.7,0.8534]
[1747737797204,0.79572,2512.7,2512.6,10.70353195]
[1747737797407,2.16102,2512.7,2512.6,10.70253195]
[1747737797795,2.16102,2512.7,2512.6,10.70153195]
[1747737798200,2.16102,2512.7,2512.6,10.70053195]
[1747737798603,2.16102,2512.7,2512.6,0.31983195]
[1747737798801,5.36882,2512.7,2512.6,0.31883195]
[1747737799207,8.10882,2512.7,2512.6,0.31783195]
[1747737799615,0.79578,2512.5,2512.4,8.248]
[1747737800101,0.79578,2512.5,2512.4,10.30042]
[1747737800498,0.79578,2512.5,2512.4,10.29942]
[1747737802003,0.79578,2512.5,2512.4,8.246]
[1747737802203,3.53578,2512.5,2512.4,8.246]
[1747737802405,3.53578,2512.5,2512.2,0.00596932]
[1747737802406,0.79585,2512.3,2512.2,0.00596932]
[1747737803006,2.05455,2512.3,2512.2,0.00596932]
[1747737803206,4.79455,2512.3,2512.2,0.00596932]
[1747737804210,2.05455,2512.3,2512.2,0.00596932]
[1747737806715,0.79585,2512.3,2512.2,0.00596932]
[1747737808210,0.79585,2512.3,2512.2,0.80184932]
[1747737808715,0.79585,2512.3,2512.2,0.00596932]
[1747737809218,0.79585,2512.3,2512.2,0.80184932]
[1747737809419,0.79585,2512.3,2512.2,0.00596932]
[1747737809718,2.05165,2512.3,2512.2,0.00596932]
[1747737810619,2.05165,2512.3,2512.2,0.80184932]
[1747737811022,4.00364,2512.4,2512.3,0.79585]
[1747737811210,4.00364,2512.4,2512.3,2.17905]
[1747737811517,3.2078,2512.4,2512.3,3.01515]
[1747737811717,4.00362,2512.4,2512.3,3.01515]
[1747737812720,4.00362,2512.4,2512.3,2.2193]
[1747737813219,4.00362,2512.4,2512.3,3.01515]
[1747737814719,3.2078,2512.4,2512.3,13.25532]
[1747737815615,4.00353,2512.7,2512.6,0.79575]
[1747737815824,3.2078,2512.7,2512.6,0.79575]
[1747737816019,4.0967,2513.0,2512.6,1.98993]
[1747737816217,0.79569,2512.9,2512.8,0.79568]
[1747737817220,3.2078,2513.0,2512.9,0.79566]
[1747737817425,0.98229007,2513.3,2513.2,0.79556]
[1747737817721,1.55880369,2513.4,2513.3,0.79553]
[1747737818111,1.55880369,2513.4,2513.3,7.784905]
[1747737818723,1.30313697,2513.6,2513.3,8.978195]
[1747737818925,1.30313697,2513.6,2513.5,4.00327]
[1747737819321,1.30313697,2513.6,2513.5,5.99249]
[1747737820627,0.00395131,2513.7,2513.6,0.79544]
[1747737820922,0.00395131,2513.7,2513.6,10.38194]
[1747737821233,0.00395131,2513.7,2513.6,12.37108]
[1747737821727,4.76660369,2514.7,2513.6,16.57564]
[1747737821928,1.55880369,2514.7,2514.6,0.79512]
[1747737822127,1.55880369,2514.8,2514.7,0.79509]
[1747737822424,1.55880369,2514.8,2514.7,12.23989]
[1747737823122,4.29880369,2514.8,2514.7,12.23989]
[1747737823424,4.29880369,2514.8,2514.7,14.22816]
[1747737824323,2.74,2514.8,2514.7,14.22816]
[1747737825123,2.74,2514.8,2514.7,12.23989]
[1747737829525,2.82486477,2514.8,2514.7,12.23989]
[1747737829728,4.18456477,2514.8,2514.7,12.23989]
[1747737829924,5.02366477,2514.8,2514.7,4.00289]
[1747737830126,5.02366477,2514.8,2514.7,12.23589]
[1747737830424,5.02366477,2514.8,2514.7,8.233]
[1747737830628,0.79512,2514.6,2514.5,0.00596932]
[1747737830929,0.79512,2514.6,2514.5,8.23896932]
[1747737831131,3.53512,2514.6,2514.5,8.23896932]
[1747737831327,4.89482,2514.6,2514.5,9.03411932]
[1747737831629,4.89482,2514.6,2514.5,8.23896932]
[1747737832031,4.89482,2514.6,2514.5,9.03411932]
[1747737832730,4.0997,2514.6,2514.5,9.03411932]
[1747737833121,4.89482,2514.6,2514.5,9.03411932]
[1747737834731,4.90162759,2514.6,2514.5,9.03411932]
[1747737837633,4.10650759,2514.6,2514.5,11.02254432]
[1747737837932,4.10650759,2514.6,2514.5,12.34614432]
[1747737838130,4.10650759,2514.6,2514.5,9.03411932]
[1747737838334,4.90162759,2514.6,2514.5,9.03411932]
[1747737839025,4.10650759,2514.6,2514.5,9.03411932]
[1747737839530,4.10650759,2514.6,2514.5,10.35571932]
[1747737840227,4.90162759,2514.6,2514.5,10.35571932]
[1747737840427,4.90162759,2514.6,2514.5,10.35471932]
[1747737840932,4.10650759,2514.6,2514.5,10.35471932]
[1747737841531,2.74680759,2514.6,2514.5,12.34314432]
[1747737841722,2.74680759,2514.6,2514.5,10.35471932]
[1747737842531,2.74680759,2514.6,2514.5,12.34214432]
[1747737844225,0.00680759,2514.6,2514.5,12.34214432]
[1747737845535,0.09167236,2514.6,2514.5,12.58358966]
[1747737846334,2.83167236,2514.6,2514.5,12.58358966]
[1747737846729,2.83167236,2514.6,2514.5,12.57658966]
[1747737847037,2.83167236,2514.6,2514.5,3.02898966]
[1747737847228,2.83167236,2514.6,2514.5,9.26656466]
[1747737847532,4.10147236,2514.6,2514.5,9.26656466]
[1747737848434,4.10147236,2514.6,2514.5,1.04056466]
[1747737848634,4.10147236,2514.6,2514.5,12.61398966]
[1747737849234,4.10147236,2514.6,2514.5,12.37254432]
[1747737850937,0.79515,2514.5,2514.4,8.54578765]
[1747737851132,5.75565,2514.5,2514.4,8.54578765]
[1747737851434,4.9605,2514.5,2514.4,9.02116]
[1747737851622,2.74,2514.5,2514.4,15.541665]
[1747737853236,0.09167236,2514.6,2514.5,0.79515]
[1747737853538,0.001,2514.8,2514.7,0.79509]
[1747737853732,0.001,2514.8,2514.7,5.99116]
[1747737854238,0.001,2514.8,2514.7,8.17076]
[1747737854740,0.001,2514.8,2514.7,13.17076]
[1747737855039,2.32341656,2515.4,2515.1,0.79496]
[1747737855226,4.29880369,2515.2,2515.1,9.02096]
[1747737855532,2.74,2515.2,2515.1,2.782915]
[1747737855847,1.55880369,2515.9,2515.8,0.79474]
[1747737856136,1.55880369,2515.9,2515.8,12.22854]
[1747737856336,1.55880369,2515.9,2515.8,14.21593999]
[1747737857336,1.55880369,2515.9,2515.8,5.98993999]
[1747737857539,1.55880369,2515.9,2515.8,23.16093999]
[1747737858141,0.00496932,2516.1,2516.0,0.79468]
[1747737858533,0.00496932,2516.1,2516.0,2.78192]
[1747737859142,2.74496932,2516.1,2516.0,2.78192]
[1747737859842,2.74496932,2516.1,2516.0,3.02331366]
[1747737861941,2.74496932,2516.1,2516.0,2.78192]
[1747737866443,2.74496932,2516.1,2516.0,11.00392]
[1747737867043,4.02056932,2516.1,2516.0,11.00392]
[1747737871045,4.02056932,2516.1,2516.0,11.00292]
[1747737871444,4.02056932,2516.1,2516.0,11.00192]
[1747737871743,4.02056932,2516.1,2516.0,11.00092]
[1747737871947,4.02056932,2516.1,2516.0,10.99992]
[1747737872146,4.02056932,2516.1,2516.0,10.99892]
[1747737872445,4.02056932,2516.1,2516.0,10.99692]
[1747737873048,2.74496932,2516.1,2516.0,10.99692]
[1747737873249,0.00496932,2516.1,2516.0,10.99692]
[1747737874148,2.74496932,2516.1,2516.0,10.99592]
[1747737874544,2.74496932,2516.1,2516.0,10.99492]
[1747737874847,4.01496932,2516.1,2516.0,10.99392]
[1747737875048,4.09983409,2516.1,2516.0,10.99292]
[1747737875246,4.09983409,2516.1,2516.0,10.99192]
[1747737875446,4.09983409,2516.1,2516.0,10.99092]
[1747737875850,4.09983409,2516.1,2516.0,10.98992]
[1747737876344,2.82983409,2516.1,2516.0,10.98892]
[1747737876544,2.1404,2516.6,2516.5,0.79352]
[1747737876741,2.1404,2516.6,2516.5,9.01352]
[1747737876943,0.8595,2516.6,2516.5,11.000365]
[1747737877143,3.5995,2516.6,2516.5,9.40621833]
[1747737877341,4.8804,2516.6,2516.5,9.40621833]
[1747737877743,3.5995,2516.6,2516.5,12.74496333]
[1747737877939,2.74,2516.6,2516.5,12.74496333]
[1747737878140,1.2809,2517.0,2516.9,0.79439]
[1747737878349,2.07527,2517.0,2516.9,8.216]
[1747737879249,4.81528,2517.0,2516.9,8.216]
[1747737879652,4.81528,2517.0,2516.9,8.215]
[1747737880355,4.81528,2517.0,2516.9,8.213]
[1747737880559,4.81528,2517.0,2516.9,8.212]
[1747737880754,4.81528,2517.0,2516.9,9.00639]
[1747737880947,4.81528,2517.0,2516.9,8.211]
[1747737881254,4.81528,2517.0,2516.9,8.21]
[1747737881454,4.81528,2517.0,2516.9,9.00439]
[1747737881655,4.81528,2517.0,2516.9,9.00339]
[1747737883156,4.0209,2517.0,2516.9,9.00339]
[1747737883854,2.74,2517.0,2516.9,10.98992]
[1747737884061,2.74,2517.0,2516.9,12.37682]
[1747737884258,1.3391,2517.2,2517.1,0.79433]
[1747737884458,1.3391,2517.2,2517.1,4.00213]
[1747737884655,1.3391,2517.2,2517.1,5.988505]
[1747737885155,4.0791,2517.2,2517.1,5.987505]
[1747737885549,4.0791,2517.2,2517.1,4.00113]
[1747737885852,4.0791,2517.2,2516.9,9.60186932]
[1747737886053,4.8734,2517.2,2517.1,0.79333]
[1747737886258,0.79434,2517.1,2517.0,0.79434]
[1747737886457,2.05164,2517.1,2517.0,0.79334]
[1747737886759,2.05164,2517.1,2517.0,0.79234]
[1747737887060,2.05164,2517.1,2517.0,0.79134]
[1747737887259,3.9973,2517.1,2517.0,0.79034]
[1747737887461,2.74,2517.1,2517.0,2.77679]
[1747737887661,2.74,2517.1,2517.0,4.16199]
[1747737887864,2.74,2517.1,2517.0,4.16099]
[1747737888361,2.74,2517.1,2517.0,4.15999]
[1747737888563,2.74,2517.1,2517.0,4.15899]
[1747737889060,2.74,2517.1,2517.0,4.15799]
[1747737889261,2.74,2517.1,2517.0,4.15699]
[1747737889463,2.74,2517.1,2517.0,4.39887132]
[1747737889676,2.74,2517.1,2517.0,4.39787132]
[1747737890166,2.74,2517.1,2517.0,4.39687132]
[1747737892659,4.0583,2517.1,2517.0,4.39687132]
[1747737893158,4.85263,2517.1,2517.0,9.23822132]
[1747737893665,4.0583,2517.1,2517.0,9.23822132]
[1747737894365,4.0583,2517.1,2517.0,1.02422132]
[1747737894666,4.85263,2517.1,2517.0,9.25024132]
[1747737894865,5.48553,2517.1,2517.0,9.25024132]
[1747737895966,5.48553,2517.1,2517.0,9.00836]
[1747737896466,0.79436,2517.0,2516.9,0.24785064]
[1747737896762,2.84736,2517.0,2516.9,0.24785064]
[1747737896971,2.84736,2517.0,2516.9,8.46185064]
[1747737897181,5.58736,2517.0,2516.9,8.46185064]
[1747737897472,5.58736,2517.0,2516.9,9.25624064]
[1747737897871,5.58736,2517.0,2516.9,9.01435932]
[1747737899170,5.58736,2517.0,2516.9,8.21996932]
[1747737899369,5.58736,2517.0,2516.9,9.01435932]
[1747737899867,5.58736,2517.0,2516.9,8.21996932]
[1747737900074,5.58736,2517.0,2516.9,9.01435932]
[1747737900372,4.793,2517.0,2516.9,9.01435932]
[1747737900866,4.793,2517.0,2516.9,10.36965932]
[1747737901062,2.74,2517.0,2516.9,12.35618932]
[1747737901257,4.00206,2517.4,2516.9,12.35618932]
[1747737901258,1.55880369,2517.6,2517.3,0.79427]
[1747737901462,0.6283,2517.5,2517.4,12.21604]
[1747737902064,0.6283,2517.5,2517.4,14.202175]
[1747737902262,1.55880369,2517.6,2517.5,0.7942]
[1747737902466,1.55880369,2517.6,2517.5,2.1495]
[1747737902766,1.28675112,2517.7,2517.5,3.34136]
[1747737902967,0.65355112,2517.7,2517.6,0.79417]
[1747737903170,1.77336454,2517.9,2517.8,0.79411]
[1747737903171,0.97928454,2517.9,2517.8,0.79411]
[1747737903374,0.97928454,2517.9,2517.8,12.21591]
[1747737903576,0.97928454,2517.9,2517.8,19.20173]
[1747737904171,0.97928454,2517.9,2517.8,5.98773]
[1747737904367,0.97928454,2517.9,2517.8,5.19362]
[1747737904562,1.77336454,2517.9,2517.8,8.5349349]
[1747737905268,4.51336454,2517.9,2517.8,8.5349349]
[1747737905470,0.79411,2517.8,2517.7,8.69728562]
[1747737905673,2.82351,2517.8,2517.7,8.69728562]
[1747737906271,5.56351,2517.8,2517.7,8.213]
[1747737907167,0.79417,2517.6,2517.5,3.44959848]
[1747737907369,0.79417,2517.6,2517.5,8.44779848]
[1747737907874,0.79416,2517.7,2517.6,0.79417]
[1747737908068,1.3838,2517.7,2517.6,9.00017]
[1747737908263,4.1238,2517.7,2517.6,9.00017]
[1747737908873,5.59314,2517.7,2517.6,0.79417]
[1747737909071,5.59314,2517.7,2517.6,9.00017]
[1747737910071,5.59314,2517.7,2517.6,8.99457906]
[1747737910670,4.799,2517.7,2517.6,8.99457906]
[1747737910869,5.59314,2517.7,2517.6,8.99457906]
[1747737911071,3.4152,2517.7,2517.6,8.99457906]
[1747737911270,3.4152,2517.7,2517.6,10.98055906]
[1747737911573,3.4152,2517.7,2517.6,12.20237906]
[1747737911774,3.4152,2517.7,2517.6,14.18835906]
[1747737912181,0.6752,2517.7,2517.6,14.18835906]
[1747737912476,0.6752,2517.7,2517.6,4.23817754]
[1747737912776,1.9874,2517.7,2517.6,12.44417754]
[1747737912976,1.9874,2517.7,2517.6,14.43015754]
[1747737913178,5.52154,2517.7,2517.6,14.43015754]
[1747737913578,3.4152,2517.7,2517.6,14.43015754]
[1747737913779,3.4152,2517.7,2517.6,12.44417754]
[1747737914076,5.52154,2517.7,2517.6,12.44417754]
[1747737915073,5.52154,2517.7,2517.6,8.44779848]
[1747737915279,5.52154,2517.7,2517.6,0.24179848]
[1747737915576,4.7274,2517.7,2517.6,9.24096848]
[1747737916076,4.7274,2517.7,2517.6,8.99917]
[1747737916276,3.54362369,2518.4,2517.9,1.98518]
[1747737916475,0.79411,2517.8,2517.7,0.79411]
[1747737916778,0.79411,2517.8,2517.7,8.99911]
[1747737916971,0.79411,2517.8,2517.7,8.205]
[1747737917278,0.79419,2517.6,2517.5,0.79418]
[1747737917480,0.79419,2517.6,2517.5,9.24097848]
[1747737917776,0.79419,2517.6,2517.5,1.03597848]
[1747737917977,2.18479,2517.6,2517.5,9.24097848]
[1747737918177,4.1306,2517.6,2517.5,0.24179848]
[1747737918378,12.3384,2517.6,2516.7,3.2078]
[1747737918577,4.00216,2517.0,2516.6,1.6015879]
[1747737918779,4.00216,2517.0,2516.6,0.8071079]
[1747737918780,4.08702477,2517.0,2516.6,0.8071079]
[1747737919077,9.08702477,2517.0,2516.6,0.8071079]
[1747737919279,0.79446,2516.7,2516.6,0.79449]
[1747737919479,0.79449,2516.6,2516.5,8.9995]
[1747737919691,1.276,2516.6,2516.5,8.9995]
[1747737919884,2.74,2517.0,2516.9,0.79439]
[1747737920181,0.79436,2517.0,2516.9,0.79439]
[1747737920380,0.79437,2517.0,2516.7,3.21375711]
[1747737920681,0.79437,2517.0,2516.9,0.79437]
[1747737921179,4.81037,2517.0,2516.9,0.79437]
[1747737921380,0.79443,2516.8,2516.7,0.80039711]
[1747737921785,1.44482,2516.9,2516.8,0.79443]
[1747737922079,2.72432,2516.9,2516.8,0.79443]
[1747737922384,4.6699,2516.9,2516.8,0.79443]
[1747737922582,4.6699,2516.9,2516.8,2.07603]
[1747737923182,4.6699,2516.9,2516.7,4.00818711]
[1747737923483,0.79443,2516.8,2516.7,4.00818711]
[1747737923685,1.2795,2516.8,2516.7,4.00818711]
[1747737924182,4.0195,2516.8,2516.7,4.00818711]
[1747737924482,2.74,2516.8,2516.7,4.00818711]
[1747737924675,2.74,2516.8,2516.7,5.99487711]
[1747737925884,3.53443,2516.8,2516.7,3.21375711]
[1747737926086,4.84973,2516.8,2516.7,3.21375711]
[1747737926783,4.84973,2516.8,2516.7,4.00821711]
[1747737928581,4.84973,2516.8,2516.7,3.21375711]
[1747737929181,4.84973,2516.8,2516.7,4.00821711]
[1747737930381,4.0553,2516.8,2516.7,4.00821711]
[1747737930778,2.74,2516.8,2516.7,5.99490711]
[1747737930978,0.00592862,2517.2,2517.1,0.79433]
[1747737931280,0.00592862,2517.2,2517.1,12.20913]
[1747737931482,0.00592862,2517.2,2517.1,14.195505]
[1747737932486,0.00592862,2517.2,2517.1,10.988705]
[1747737933181,0.00592862,2517.2,2517.1,14.196505]
[1747737933581,0.00592862,2517.2,2517.0,2.05904]
[1747737933887,0.80023862,2517.2,2517.1,9.00233]
[1747737934088,3.54023862,2517.2,2517.1,9.00233]
[1747737935389,3.54023862,2517.2,2517.1,0.79433]
[1747737935783,2.74592862,2517.2,2517.1,0.79433]
[1747737935985,2.83079339,2517.2,2517.1,0.79433]
[1747737936184,4.18999339,2517.2,2517.1,0.79433]
[1747737936690,4.98429339,2517.2,2517.1,0.79433]
[1747737937384,0.79433,2517.1,2517.0,8.207]
[1747737937576,0.79436,2517.0,2516.9,0.79438]
[1747737937781,0.79443,2516.9,2516.8,0.7944]
[1747737937981,2.75173,2516.9,2516.8,0.7944]
[1747737938185,0.79443,2516.8,2516.7,9.32669428]
[1747737938489,3.3831,2516.9,2516.8,0.79443]
[1747737938690,4.6973,2516.9,2516.8,0.79443]
[1747737938992,4.6973,2516.9,2516.8,2.04793]
[1747737939290,5.49169,2516.9,2516.8,2.04793]
[1747737939682,5.49169,2516.9,2516.8,0.79443]
[1747737940592,3.3831,2516.9,2516.8,0.79443]
[1747737940887,3.3831,2516.9,2516.8,2.06363]
[1747737941389,4.17749,2516.9,2516.8,2.06363]
[1747737941890,5.56289,2516.9,2516.8,2.06363]
[1747737942391,0.79443,2516.8,2516.7,8.20995711]
[1747737942593,2.14603,2516.8,2516.7,9.00441711]
[1747737943094,4.88603,2516.8,2516.7,9.00441711]
[1747737943886,2.74,2516.8,2516.7,9.00441711]
[1747737944090,2.74,2516.8,2516.7,10.99110711]
[1747737944291,1.4375,2516.9,2516.8,0.79443]
[1747737944490,1.4375,2516.9,2516.8,2.14213]
[1747737944890,2.7891,2516.9,2516.8,2.14213]
[1747737945192,5.5291,2516.9,2516.8,2.14213]
[1747737948293,5.5291,2516.9,2516.8,0.79443]
[1747737948493,0.79443,2516.8,2516.7,9.00539711]
[1747737948691,2.10223,2516.8,2516.7,9.00539711]
[1747737949090,4.84223,2516.8,2516.7,9.00539711]
[1747737949596,4.84223,2516.8,2516.7,0.80039711]
[1747737950603,8.05003,2516.8,2516.7,0.00595711]
[1747737950899,13.05003,2516.8,2516.7,0.00595711]
[1747737953203,0.79452,2516.5,2516.4,8.205]
[1747737953895,1.98651,2516.3,2515.9,0.32229717]
[1747737954198,0.79468,2516.0,2515.9,0.32229717]
[1747737954395,2.72294,2516.2,2516.1,0.79465]
[1747737954595,3.53458,2516.3,2516.2,0.79462]
[1747737956098,2.74,2516.3,2516.2,0.79462]
[1747737956298,3.53458,2516.3,2516.2,0.79462]
[1747737958305,2.74,2516.3,2516.2,0.79462]
[1747737958790,2.74,2516.3,2516.2,4.00242]
[1747737958995,2.74,2516.3,2516.2,5.989505]
[1747737959199,0.79454,2516.5,2516.4,0.79455]
[1747737959393,0.79455,2516.4,2516.3,2.05836]
[1747737960301,0.79465,2516.1,2516.0,8.206]
[1747737960499,0.79468,2516.0,2515.9,3.53009717]
[1747737960802,0.79468,2516.0,2515.9,0.32229717]
[1747737961199,0.79471,2515.9,2515.8,0.00595711]
[1747737961400,2.13601,2515.9,2515.8,0.00595711]
[1747737961999,2.77571,2515.9,2515.8,0.80069711]
[1747737962305,5.51571,2515.9,2515.8,0.80069711]
[1747737962601,5.51571,2515.9,2515.8,2.16619711]
[1747737963801,5.51571,2515.9,2515.8,1.37145711]
[1747737964007,5.51571,2515.9,2515.8,0.00595711]
[1747737966003,10.51571,2515.9,2515.8,0.00595711]
[1747737966506,5.51571,2515.9,2515.8,0.00595711]
[1747737968407,10.51571,2515.9,2515.8,0.00595711]
[1747737968701,10.51571,2515.9,2515.8,7.11e-06]
[1747737970202,5.51571,2515.9,2515.8,7.11e-06]
[1747737974408,10.51571,2515.9,2515.8,7.11e-06]
[1747737976104,18.71971,2515.9,2515.8,7.11e-06]
[1747737976606,0.79496,2515.1,2515.0,8.204]
[1747737976810,0.79503,2514.9,2514.8,5.32496]
[1747737977007,1.3065,2515.0,2514.9,0.79503]